lending/lending_fUSD_20240410
["ID","MTS","AMOUNT","RATE_DAILY","PERIOD"]
[322060660,1712735449972,-34554.17839291,0.00019945,2]
[322060662,1712735449983,-831.087758,0.00019945,2]
[322060666,1712735450008,-7130.52796677,0.00019945,2]
[322060865,1712735471682,3437.58670688,0.000154,2]
[322060866,1712735481216,8553.08457535,9e-05,2]
[322060867,1712735486468,601.47710988,0.00018,2]
[322060868,1712735498672,4302.91906703,0.00011,2]
[322060869,1712735516614,2793.97089091,6.94e-05,2]
[322060870,1712735516638,4222.43860842,6.94e-05,2]
[322060871,1712735516662,4198.77104187,6.94e-05,2]
[322060872,1712735516687,9643.68589564,6.94e-05,2]
[322060876,1712735704834,25000.0,0.00031757,30]
[322060877,1712735731184,396.81,0.00017076,2]
[322060878,1712735816406,208.08791572,0.0003,25]
[322060903,1712736225005,384.47,0.00016867,2]
[322060904,1712736238282,1000.0,0.0003,30]
[322060906,1712736551128,-201.9156312,0.00018708,2]
[322060907,1712736551148,-155.0,0.00018709,2]
[322060908,1712736551168,-5827.63551321,0.00018716,2]
[322060909,1712736551187,-408.87982165,0.00018717,2]
[322060910,1712736551206,-465.79,0.00018734,2]
[322060911,1712736551226,-245.89,0.00018777,2]
[322060912,1712736551250,-250.0,0.00018785,2]
[322060913,1712736551409,796.92,0.00018672,2]
[322060914,1712736552094,-1000.0,0.00018861,2]
[322060915,1712736552115,-150.0,0.00018899,2]
[322060916,1712736552135,-919.017062,0.000189,2]
[322060934,1712736632202,-60006.87253716,0.000189,2]
[322060936,1712736632212,-1250.0,0.00019,3]
[322060938,1712736632222,-169.11,0.00019083,2]
[322060940,1712736632233,-384.47,0.00019131,2]
[322060941,1712736632243,-168.07,0.00019251,2]
[322060942,1712736632252,-186.713768,0.00019452,2]
[322060943,1712736632262,-10000.0,0.00019485,2]
[322060944,1712736632271,-150.0,0.0001966,2]
[322060945,1712736632280,-200.0,0.00019785,2]
[322060946,1712736632289,-1000.0,0.000198,2]
[322060947,1712736632299,-2500.0,0.00019833,2]
[322060948,1712736632308,-2074.63302213,0.00019833,2]
[322060949,1712736632318,-191.0475,0.00019834,2]
[322060950,1712736632327,-302.5569537,0.00019834,2]
[322060951,1712736632337,-12235.405,0.00019845,2]
[322060952,1712736632348,-170.9701071,0.00019847,2]
[322060953,1712736632357,-438.96999102,0.00019852,2]
[322060954,1712736632368,-155.43708259,0.00019931,2]
[322060955,1712736632378,-374.94515625,0.00019931,2]
[322060956,1712736632388,-229.74543048,0.00019931,2]
[322060957,1712736632398,-155.0,0.00019931,2]
[322060958,1712736632408,-1046.66847961,0.00019931,2]
[322060959,1712736632419,-500.0,0.00019932,2]
[322060960,1712736632428,-539.12,0.00019932,2]
[322060961,1712736632438,-500.0,0.00019932,2]
[322060962,1712736632447,-500.0,0.00019932,2]
[322060963,1712736632456,-4850.12,0.00019932,2]
[322060964,1712736632465,-500.0,0.00019932,2]
[322060965,1712736632475,-500.0,0.00019932,2]
[322060966,1712736632484,-532.17,0.00019932,2]
[322060967,1712736632493,-500.0,0.00019932,2]
[322060968,1712736632502,-586.44,0.00019932,2]
[322060969,1712736632511,-500.0,0.00019932,2]
[322060970,1712736632521,-500.0,0.00019932,2]
[322060971,1712736632530,-500.0,0.00019932,2]
[322060972,1712736632539,-500.0,0.00019932,2]
[322060973,1712736632550,-500.0,0.00019932,2]
[322060974,1712736632559,-500.0,0.00019932,2]
[322060975,1712736632568,-500.0,0.00019932,2]
[322060976,1712736632578,-500.0,0.00019932,2]
[322060977,1712736632587,-1946.46,0.00019932,2]
[322060979,1712736632596,-500.0,0.00019932,2]
[322060980,1712736632606,-500.0,0.00019932,2]
[322060981,1712736632616,-500.0,0.00019932,2]
[322060982,1712736632625,-500.0,0.00019932,2]
[322060983,1712736632635,-500.0,0.00019932,2]
[322060984,1712736632646,-857.36,0.00019932,2]
[322060986,1712736632657,-1298.32,0.00019932,2]
[322060989,1712736632667,-500.0,0.00019932,2]
[322060990,1712736632677,-500.0,0.00019932,2]
[322060991,1712736632686,-1750.73,0.00019932,2]
[322060992,1712736632696,-500.0,0.00019932,2]
[322060993,1712736632705,-724.9,0.00019932,2]
[322060994,1712736632715,-500.0,0.00019932,2]
[322060995,1712736632726,-530.51,0.00019932,2]
[322060996,1712736632735,-500.0,0.00019932,2]
[322060997,1712736632745,-701.23,0.00019932,2]
[322060998,1712736632754,-500.0,0.00019932,2]
[322060999,1712736632764,-500.0,0.00019932,2]
[322061000,1712736632774,-2912.72,0.00019932,2]
[322061001,1712736632783,-676.11,0.00019932,2]
[322061002,1712736632793,-757.3,0.00019932,2]
[322061003,1712736632803,-500.0,0.00019932,2]
[322061004,1712736632812,-2002.16,0.00019932,2]
[322061005,1712736632821,-784.49,0.00019932,2]
[322061006,1712736632831,-1327.83,0.00019932,2]
[322061007,1712736632842,-1180.98,0.00019932,2]
[322061008,1712736632852,-500.0,0.00019932,2]
[322061009,1712736632861,-1559.35,0.00019932,2]
[322061010,1712736632870,-500.0,0.00019932,2]
[322061011,1712736632880,-2908.4,0.00019932,2]
[322061012,1712736632889,-727.46,0.00019932,2]
[322061013,1712736632899,-633.58,0.00019932,2]
[322061014,1712736632909,-242.64497196,0.00019932,2]
[322061015,1712736632943,-576.78999998,0.00019932,2]
[322061016,1712736632967,-464.45502806,0.00019932,2]
[322061017,1712736632977,-500.0,0.00019932,2]
[322061018,1712736632987,-1049.45,0.00019932,2]
[322061019,1712736632999,-500.0,0.00019932,2]
[322061020,1712736633008,-840.11,0.00019932,2]
[322061021,1712736633019,-178.83497194,0.00019932,2]
[322061022,1712736633031,-321.16502806,0.00019932,2]
[322061023,1712736633040,-1295.21,0.00019932,2]
[322061024,1712736633053,-500.0,0.00019932,2]
[322061025,1712736633063,-676.87,0.00019932,2]
[322061026,1712736633075,-500.0,0.00019932,2]
[322061027,1712736633085,-500.0,0.00019932,2]
[322061028,1712736633095,-1145.35,0.00019932,2]
[322061029,1712736633105,-581.89156214,0.00019932,2]
[322061030,1712736633115,-962.73,0.00019932,2]
[322061031,1712736633125,-408.48748977,0.00019932,2]
[322061032,1712736633137,-207.21039675,0.00019932,2]
[322061033,1712736633146,-500.0,0.00019932,2]
[322061034,1712736633157,-500.0,0.00019932,2]
[322061035,1712736633167,-500.0,0.00019932,2]
[322061036,1712736633177,-215.43117381,0.00019933,2]
[322061037,1712736633189,-1698.38379013,0.00019933,2]
[322061038,1712736633200,-156.51793737,0.00019933,2]
[322061039,1712736633211,-550.51311595,0.00019933,2]
[322061040,1712736633224,-156.8059987,0.00019933,2]
[322061041,1712736633237,-171.06528897,0.00019933,2]
[322061042,1712736633248,-500.0,0.00019933,2]
[322061043,1712736633258,-155.29437304,0.00019933,2]
[322061044,1712736633270,-245.39907897,0.00019933,2]
[322061045,1712736633282,-155.84362625,0.00019933,2]
[322061046,1712736633293,-1946.38168202,0.00019933,2]
[322061047,1712736633305,-313.67729988,0.00019933,2]
[322061048,1712736633318,-500.0,0.00019933,2]
[322061049,1712736633328,-529.89795953,0.00019933,2]
[322061050,1712736633339,-500.0,0.00019933,2]
[322061051,1712736633349,-500.0,0.00019933,2]
[322061052,1712736633359,-500.0,0.00019933,2]
[322061053,1712736633371,-571.02045371,0.00019933,2]
[322061054,1712736633381,-500.0,0.00019933,2]
[322061055,1712736633392,-500.0,0.00019933,2]
[322061056,1712736633404,-646.66110118,0.00019933,2]
[322061057,1712736633415,-500.0,0.00019933,2]
[322061058,1712736633425,-500.0,0.00019933,2]
[322061059,1712736633435,-500.0,0.00019933,2]
[322061060,1712736633446,-500.0,0.00019933,2]
[322061061,1712736633457,-525.28427368,0.00019933,2]
[322061062,1712736633467,-425.37524145,0.00019933,2]
[322061063,1712736633479,-500.0,0.00019933,2]
[322061064,1712736633490,-500.0,0.00019933,2]
[322061065,1712736633499,-500.0,0.00019933,2]
[322061066,1712736633510,-330.38733006,0.00019933,2]
[322061067,1712736633521,-512.7,0.00019933,2]
[322061068,1712736633531,-233.803673,0.00019933,2]
[322061069,1712736633614,-7.16057434,0.00019933,2]
[322061070,1712736633629,-500.0,0.00019933,2]
[322061071,1712736633639,-301.26190976,0.00019933,2]
[322061072,1712736633652,-282.80485997,0.00019933,2]
[322061073,1712736633664,-500.0,0.00019933,2]
[322061074,1712736633673,-500.0,0.00019933,2]
[322061075,1712736633683,-500.0,0.00019933,2]
[322061076,1712736633693,-542.54447594,0.00019933,2]
[322061077,1712736633704,-500.0,0.00019933,2]
[322061078,1712736633714,-500.0,0.00019933,2]
[322061079,1712736633724,-500.0,0.00019933,2]
[322061080,1712736633734,-512.11,0.00019933,2]
[322061081,1712736633745,-510.02947088,0.00019933,2]
[322061082,1712736633756,-158.69867956,0.00019933,2]
[322061083,1712736633768,-341.30132044,0.00019933,2]
[322061084,1712736633777,-500.0,0.00019933,2]
[322061085,1712736633788,-529.17868144,0.00019933,2]
[322061086,1712736633799,-189.93846736,0.00019933,2]
[322061087,1712736633809,-572.64977876,0.00019933,2]
[322061088,1712736633818,-518.34086427,0.00019933,2]
[322061089,1712736633828,-500.0,0.00019933,2]
[322061090,1712736633837,-500.0,0.00019933,2]
[322061091,1712736633847,-500.0,0.00019933,2]
[322061092,1712736633856,-542.02327417,0.00019933,2]
[322061093,1712736633866,-300.38012721,0.00019933,2]
[322061094,1712736633891,-500.0,0.00019932,2]
[322061095,1712736633900,-199.61987279,0.00019933,2]
[322061096,1712736633910,-93.37815672,0.00019933,2]
[322061097,1712736633922,-406.62184328,0.00019933,2]
[322061098,1712736633932,-500.0,0.00019933,2]
[322061099,1712736633941,-500.0,0.00019933,2]
[322061100,1712736633951,-517.07409671,0.00019933,2]
[322061101,1712736633961,-217.30536824,0.00019933,2]
[322061102,1712736633970,-500.0,0.00019933,2]
[322061103,1712736633979,-500.0,0.00019933,2]
[322061104,1712736633988,-428.90425982,0.00019933,2]
[322061105,1712736634004,-71.09574018,0.00019933,2]
[322061106,1712736634015,-296.56116925,0.00019933,2]
[322061107,1712736634024,-500.0,0.00019933,2]
[322061108,1712736634033,-492.36289057,0.00019933,2]
[322061109,1712736634066,-7.63710943,0.00019933,2]
[322061110,1712736634076,-500.0,0.00019933,2]
[322061111,1712736634087,-500.0,0.00019933,2]
[322061112,1712736634096,-500.0,0.00019933,2]
[322061113,1712736634106,-500.0,0.00019933,2]
[322061114,1712736634115,-500.0,0.00019933,2]
[322061115,1712736634124,-500.0,0.00019933,2]
[322061116,1712736634133,-500.0,0.00019933,2]
[322061117,1712736634142,-974.83,0.00019933,2]
[322061118,1712736634151,-500.0,0.00019933,2]
[322061119,1712736634161,-500.0,0.00019933,2]
[322061120,1712736634170,-500.0,0.00019933,2]
[322061121,1712736634179,-315.80315425,0.00019933,2]
[322061122,1712736634191,-184.19684575,0.00019933,2]
[322061123,1712736634200,-396.36180929,0.00019933,2]
[322061124,1712736634220,-103.63819071,0.00019933,2]
[322061125,1712736634229,-500.0,0.00019933,2]
[322061126,1712736634239,-227.55801189,0.00019933,2]
[322061127,1712736634252,-272.44198811,0.00019933,2]
[322061128,1712736634261,-101.28681922,0.00019933,2]
[322061144,1712736638449,-2406.01,0.00019932,2]
[322061146,1712736638459,-2600.37,0.00019932,2]
[322061148,1712736638468,-500.0,0.00019932,2]
[322061150,1712736638477,-398.71318078,0.00019933,2]
[322061152,1712736638487,-500.0,0.00019933,2]
[322061154,1712736638496,-500.0,0.00019933,2]
[322061156,1712736638505,-500.0,0.00019933,2]
[322061158,1712736638514,-500.0,0.00019933,2]
[322061160,1712736638523,-500.0,0.00019933,2]
[322061162,1712736638533,-500.0,0.00019933,2]
[322061164,1712736638542,-500.0,0.00019933,2]
[322061166,1712736638551,-500.0,0.00019933,2]
[322061168,1712736638560,-500.0,0.00019933,2]
[322061170,1712736638569,-500.0,0.00019933,2]
[322061172,1712736638579,-500.0,0.00019933,2]
[322061174,1712736638588,-500.0,0.00019933,2]
[322061176,1712736638597,-500.0,0.00019933,2]
[322061178,1712736638607,-500.0,0.00019933,2]
[322061180,1712736638616,-500.0,0.00019933,2]
[322061182,1712736638626,-599.72590937,0.00019933,2]
[322061184,1712736638635,-500.0,0.00019933,2]
[322061186,1712736638645,-374.06726614,0.00019933,2]
[322061188,1712736638655,-500.0,0.00019933,2]
[322061190,1712736638665,-513.41500967,0.00019933,2]
[322061192,1712736638674,-500.0,0.00019933,2]
[322061194,1712736638684,-500.0,0.00019933,2]
[322061196,1712736638694,-500.0,0.00019933,2]
[322061197,1712736638703,-554.17,0.00019933,2]
[322061200,1712736638713,-500.0,0.00019933,2]
[322061202,1712736638723,-500.0,0.00019933,2]
[322061204,1712736638732,-500.0,0.00019933,2]
[322061206,1712736638741,-500.0,0.00019933,2]
[322061208,1712736638751,-500.0,0.00019933,2]
[322061211,1712736638761,-500.0,0.00019933,2]
[322061214,1712736638770,-500.0,0.00019933,2]
[322061217,1712736638779,-167.29027754,0.00019933,2]
[322061220,1712736638789,-500.0,0.00019933,2]
[322061222,1712736638799,-500.0,0.00019933,2]
[322061224,1712736638808,-527.77233609,0.00019933,2]
[322061226,1712736638817,-500.0,0.00019933,2]
[322061228,1712736638826,-500.0,0.00019933,2]
[322061230,1712736638836,-500.0,0.00019933,2]
[322061232,1712736638845,-500.0,0.00019933,2]
[322061234,1712736638854,-500.0,0.00019933,2]
[322061236,1712736638863,-500.0,0.00019933,2]
[322061238,1712736638873,-500.0,0.00019933,2]
[322061240,1712736638883,-500.0,0.00019933,2]
[322061242,1712736638892,-500.0,0.00019933,2]
[322061244,1712736638901,-500.0,0.00019933,2]
[322061246,1712736638911,-500.0,0.00019933,2]
[322061248,1712736638921,-500.0,0.00019933,2]
[322061250,1712736638930,-500.0,0.00019933,2]
[322061252,1712736638940,-500.0,0.00019933,2]
[322061254,1712736638951,-500.0,0.00019933,2]
[322061255,1712736638961,-500.0,0.00019933,2]
[322061256,1712736638969,-500.0,0.00019933,2]
[322061257,1712736638979,-500.0,0.00019933,2]
[322061258,1712736638990,-500.0,0.00019933,2]
[322061259,1712736639001,-500.0,0.00019933,2]
[322061260,1712736639012,-500.0,0.00019933,2]
[322061261,1712736639022,-500.0,0.00019933,2]
[322061262,1712736639032,-517.51209303,0.00019933,2]
[322061263,1712736639044,-173.64451597,0.00019933,2]
[322061264,1712736639054,-500.0,0.00019933,2]
[322061265,1712736639064,-500.0,0.00019933,2]
[322061266,1712736639075,-367.2247844,0.00019933,2]
[322061267,1712736639086,-500.0,0.00019933,2]
[322061268,1712736639097,-500.0,0.00019933,2]
[322061269,1712736639108,-500.0,0.00019933,2]
[322061270,1712736639117,-500.0,0.00019933,2]
[322061271,1712736639129,-500.0,0.00019933,2]
[322061272,1712736639140,-150.0,0.00019933,2]
[322061273,1712736639149,-500.0,0.00019933,2]
[322061274,1712736639159,-500.0,0.00019933,2]
[322061275,1712736639169,-487.64937866,0.00019933,2]
[322061276,1712736639179,-500.0,0.00019933,2]
[322061277,1712736639188,-500.0,0.00019933,2]
[322061278,1712736639197,-500.0,0.00019933,2]
[322061279,1712736639206,-500.0,0.00019933,2]
[322061280,1712736639215,-500.0,0.00019933,2]
[322061281,1712736639224,-500.0,0.00019933,2]
[322061282,1712736639233,-500.0,0.00019933,2]
[322061283,1712736639242,-500.0,0.00019933,2]
[322061284,1712736639252,-500.0,0.00019933,2]
[322061285,1712736639260,-575.92857187,0.00019933,2]
[322061286,1712736639271,-271.09127753,0.00019933,2]
[322061287,1712736639282,-500.0,0.00019933,2]
[322061288,1712736639291,-500.0,0.00019933,2]
[322061289,1712736639303,-586.53,0.00019933,2]
[322061290,1712736639313,-797.6,0.00019933,2]
[322061291,1712736639323,-508.69026346,0.00019933,2]
[322061292,1712736639333,-713.54,0.00019933,2]
[322061293,1712736639343,-500.0,0.00019933,2]
[322061294,1712736639353,-796.94,0.00019933,2]
[322061295,1712736639362,-500.0,0.00019933,2]
[322061296,1712736639371,-554.9926054,0.00019933,2]
[322061297,1712736639381,-500.0,0.00019933,2]
[322061298,1712736639390,-500.0,0.00019933,2]
[322061299,1712736639402,-517.93987087,0.00019933,2]
[322061300,1712736639411,-296.75786311,0.00019933,2]
[322061301,1712736639421,-625.34374702,0.00019933,2]
[322061302,1712736639431,-500.0,0.00019933,2]
[322061303,1712736639440,-500.0,0.00019933,2]
[322061304,1712736639450,-500.0,0.00019933,2]
[322061305,1712736639460,-444.2002351,0.00019933,2]
[322061306,1712736639469,-500.0,0.00019933,2]
[322061307,1712736639479,-500.0,0.00019933,2]
[322061308,1712736639489,-500.0,0.00019933,2]
[322061309,1712736639498,-500.0,0.00019933,2]
[322061310,1712736639507,-500.0,0.00019933,2]
[322061311,1712736639517,-623.26,0.00019933,2]
[322061312,1712736639525,-500.0,0.00019933,2]
[322061313,1712736639536,-166.83650085,0.00019933,2]
[322061314,1712736639546,-500.0,0.00019933,2]
[322061315,1712736639559,-500.0,0.00019933,2]
[322061316,1712736639568,-500.0,0.00019933,2]
[322061317,1712736639577,-500.0,0.00019933,2]
[322061318,1712736639586,-500.0,0.00019933,2]
[322061319,1712736639595,-500.0,0.00019933,2]
[322061320,1712736639604,-500.0,0.00019933,2]
[322061321,1712736639615,-500.0,0.00019933,2]
[322061322,1712736639624,-500.0,0.00019933,2]
[322061323,1712736639634,-500.0,0.00019933,2]
[322061324,1712736639644,-859.06,0.00019933,2]
[322061325,1712736639654,-500.0,0.00019933,2]
[322061326,1712736639663,-500.0,0.00019933,2]
[322061327,1712736639672,-500.0,0.00019933,2]
[322061328,1712736639681,-582.75,0.00019933,2]
[322061329,1712736639690,-568.43,0.00019933,2]
[322061330,1712736639700,-500.0,0.00019933,2]
[322061331,1712736639709,-500.0,0.00019933,2]
[322061332,1712736639719,-500.0,0.00019933,2]
[322061333,1712736639729,-609.19,0.00019933,2]
[322061334,1712736639739,-500.0,0.00019933,2]
[322061335,1712736639749,-500.0,0.00019933,2]
[322061336,1712736639759,-832.36,0.00019933,2]
[322061337,1712736639768,-698.37,0.00019933,2]
[322061338,1712736639778,-500.0,0.00019933,2]
[322061339,1712736639789,-500.0,0.00019933,2]
[322061340,1712736639799,-500.0,0.00019933,2]
[322061341,1712736639810,-500.0,0.00019933,2]
[322061342,1712736639820,-1320.84,0.00019933,2]
[322061343,1712736639829,-500.0,0.00019933,2]
[322061344,1712736639838,-500.0,0.00019933,2]
[322061345,1712736639847,-500.0,0.00019933,2]
[322061346,1712736639856,-826.12,0.00019933,2]
[322061347,1712736639866,-500.0,0.00019933,2]
[322061348,1712736639875,-500.0,0.00019933,2]
[322061349,1712736639884,-500.0,0.00019933,2]
[322061350,1712736639896,-500.0,0.00019933,2]
[322061351,1712736639906,-500.0,0.00019933,2]
[322061352,1712736639915,-500.0,0.00019933,2]
[322061353,1712736639925,-500.0,0.00019933,2]
[322061354,1712736639934,-500.0,0.00019933,2]
[322061355,1712736639943,-500.0,0.00019933,2]
[322061356,1712736639953,-500.0,0.00019933,2]
[322061357,1712736639963,-1250.77,0.00019933,2]
[322061358,1712736639973,-500.0,0.00019933,2]
[322061359,1712736639983,-500.0,0.00019933,2]
[322061360,1712736639993,-500.0,0.00019933,2]
[322061361,1712736640003,-500.0,0.00019933,2]
[322061362,1712736640013,-500.0,0.00019933,2]
[322061363,1712736640023,-311.58224268,0.00019933,2]
[322061365,1712736640032,-500.0,0.00019933,2]
[322061367,1712736640041,-500.0,0.00019933,2]
[322061368,1712736640054,-500.0,0.00019933,2]
[322061369,1712736640064,-500.0,0.00019933,2]
[322061370,1712736640074,-500.0,0.00019933,2]
[322061371,1712736640084,-600.68,0.00019933,2]
[322061372,1712736640094,-500.0,0.00019933,2]
[322061373,1712736640103,-500.0,0.00019933,2]
[322061374,1712736640112,-500.0,0.00019933,2]
[322061375,1712736640121,-203.26307213,0.00019933,2]
[322061376,1712736640130,-500.0,0.00019933,2]
[322061377,1712736640141,-500.0,0.00019933,2]
[322061378,1712736640150,-500.0,0.00019933,2]
[322061379,1712736640159,-1981.9,0.00019933,2]
[322061380,1712736640169,-500.0,0.00019933,2]
[322061381,1712736640179,-500.0,0.00019933,2]
[322061382,1712736640189,-500.0,0.00019933,2]
[322061383,1712736640199,-500.0,0.00019933,2]
[322061384,1712736640209,-500.0,0.00019933,2]
[322061385,1712736640218,-500.0,0.00019933,2]
[322061386,1712736640227,-1062.35,0.00019933,2]
[322061387,1712736640237,-500.0,0.00019933,2]
[322061388,1712736640247,-6544.71,0.00019933,2]
[322061389,1712736640257,-500.0,0.00019933,2]
[322061390,1712736640266,-1157.6,0.00019933,2]
[322061391,1712736640275,-500.0,0.00019933,2]
[322061392,1712736640284,-500.0,0.00019933,2]
[322061393,1712736640293,-500.0,0.00019933,2]
[322061394,1712736640303,-500.0,0.00019933,2]
[322061395,1712736640312,-500.0,0.00019933,2]
[322061396,1712736640322,-500.0,0.00019933,2]
[322061397,1712736640330,-500.0,0.00019933,2]
[322061398,1712736640339,-500.0,0.00019933,2]
[322061399,1712736640348,-500.0,0.00019933,2]
[322061400,1712736640357,-703.62,0.00019933,2]
[322061401,1712736640366,-500.0,0.00019933,2]
[322061402,1712736640374,-500.0,0.00019933,2]
[322061403,1712736640383,-1023.99,0.00019933,2]
[322061404,1712736640392,-500.0,0.00019933,2]
[322061405,1712736640401,-748.5,0.00019933,2]
[322061406,1712736640410,-500.0,0.00019933,2]
[322061407,1712736640419,-500.0,0.00019933,2]
[322061408,1712736640428,-500.0,0.00019933,2]
[322061409,1712736640438,-500.0,0.00019933,2]
[322061410,1712736640447,-637.7,0.00019933,2]
[322061411,1712736640456,-500.0,0.00019933,2]
[322061412,1712736640466,-1229.33,0.00019933,2]
[322061413,1712736640474,-500.0,0.00019933,2]
[322061414,1712736640483,-500.0,0.00019933,2]
[322061415,1712736640493,-500.0,0.00019933,2]
[322061416,1712736640502,-983.98,0.00019933,2]
[322061417,1712736640511,-1281.96,0.00019933,2]
[322061418,1712736640520,-500.0,0.00019933,2]
[322061419,1712736640529,-320.07292754,0.00019933,2]
[322061420,1712736640538,-378.25081513,0.00019933,2]
[322061421,1712736640547,-500.0,0.00019933,2]
[322061422,1712736640557,-500.0,0.00019933,2]
[322061423,1712736640566,-902.72,0.00019933,2]
[322061424,1712736640574,-706.39,0.00019933,2]
[322061425,1712736640583,-500.0,0.00019933,2]
[322061426,1712736640593,-511.06199728,0.00019933,2]
[322061427,1712736640602,-500.0,0.00019933,2]
[322061428,1712736640611,-516.06137373,0.00019933,2]
[322061429,1712736640621,-865.9,0.00019933,2]
[322061430,1712736640632,-500.0,0.00019933,2]
[322061431,1712736640642,-1201.18,0.00019933,2]
[322061432,1712736640652,-500.0,0.00019933,2]
[322061433,1712736640662,-500.0,0.00019933,2]
[322061434,1712736640671,-500.0,0.00019933,2]
[322061435,1712736640680,-500.0,0.00019933,2]
[322061436,1712736640690,-500.0,0.00019933,2]
[322061437,1712736640699,-500.0,0.00019933,2]
[322061438,1712736640708,-500.0,0.00019933,2]
[322061439,1712736640717,-500.0,0.00019933,2]
[322061440,1712736640727,-500.0,0.00019933,2]
[322061441,1712736640736,-500.0,0.00019933,2]
[322061442,1712736640746,-500.0,0.00019933,2]
[322061443,1712736640755,-1079.71,0.00019933,2]
[322061444,1712736640765,-554.67252517,0.00019933,2]
[322061445,1712736640775,-500.0,0.00019933,2]
[322061446,1712736640785,-500.0,0.00019933,2]
[322061447,1712736640797,-500.0,0.00019933,2]
[322061448,1712736640809,-966.72,0.00019933,2]
[322061449,1712736640819,-1176.19,0.00019933,2]
[322061450,1712736640829,-500.0,0.00019933,2]
[322061451,1712736640839,-3529.7,0.00019933,2]
[322061452,1712736640849,-500.0,0.00019933,2]
[322061453,1712736640858,-500.0,0.00019933,2]
[322061454,1712736640867,-788.26,0.00019933,2]
[322061455,1712736640876,-500.0,0.00019933,2]
[322061456,1712736640885,-500.0,0.00019933,2]
[322061457,1712736640894,-665.63,0.00019933,2]
[322061458,1712736640903,-500.0,0.00019933,2]
[322061459,1712736640912,-565.7,0.00019933,2]
[322061460,1712736640922,-259.93801805,0.00019933,2]
[322061461,1712736640932,-518.77,0.00019933,2]
[322061462,1712736640943,-500.0,0.00019933,2]
[322061463,1712736640952,-180.82559309,0.00019933,2]
[322061464,1712736640963,-527.97266598,0.00019933,2]
[322061465,1712736640973,-1032.8,0.00019933,2]
[322061466,1712736640982,-500.0,0.00019933,2]
[322061467,1712736640991,-614.57062556,0.00019933,2]
[322061468,1712736641001,-500.0,0.00019933,2]
[322061469,1712736641011,-500.0,0.00019933,2]
[322061470,1712736641023,-500.0,0.00019933,2]
[322061471,1712736641032,-500.0,0.00019933,2]
[322061472,1712736641041,-500.0,0.00019933,2]
[322061473,1712736641052,-721.96,0.00019933,2]
[322061474,1712736641063,-500.0,0.00019933,2]
[322061475,1712736641073,-500.0,0.00019933,2]
[322061476,1712736641082,-500.0,0.00019933,2]
[322061477,1712736641092,-1470.47,0.00019933,2]
[322061478,1712736641102,-500.0,0.00019933,2]
[322061479,1712736641112,-195.35482344,0.00019933,2]
[322061480,1712736641121,-518.65346148,0.00019933,2]
[322061481,1712736641131,-500.0,0.00019933,2]
[322061482,1712736641140,-500.0,0.00019933,2]
[322061483,1712736641149,-584.45,0.00019933,2]
[322061484,1712736641158,-1277.4,0.00019933,2]
[322061485,1712736641168,-500.0,0.00019933,2]
[322061486,1712736641177,-500.0,0.00019933,2]
[322061487,1712736641186,-500.0,0.00019933,2]